[Event "Titled Tuesday Blitz April 12 Early 2022"]
[White "Artemenko, Oleg"]
[Black "Pakleza, Zbigniew"]
[WhiteFideId "14201798"]
[BlackFideId "1119290"]
[WhiteElo "2287"]
[BlackElo "2467"]
[Result "1-0"]
[Round "11"]
[TimeControl "180+1"]
[Date "2022.04.12"]
[WhiteClock "0:00:47"]
[BlackClock "0:00:09"]

1. d4 {[%clk 0:03:00]}  d6 {[%clk 0:02:54]} 2. Nc3 {[%clk 0:03:01]}  e5 {[%clk 0:02:52]} 3. Nf3 {[%clk 0:02:59]}  Nd7 {[%clk 0:02:49]} 4. e4 {[%clk 0:02:59]}  Ngf6 {[%clk 0:02:48]} 5. Bc4 {[%clk 0:02:59]}  Be7 {[%clk 0:02:49]} 6. Ng5 {[%clk 0:02:56]}  O-O {[%clk 0:02:49]} 7. Bxf7+ {[%clk 0:02:56]}  Rxf7 {[%clk 0:02:49]} 8. Ne6 {[%clk 0:02:57]}  Qe8 {[%clk 0:02:50]} 9. Nxc7 {[%clk 0:02:58]}  Qd8 {[%clk 0:02:51]} 10. Nxa8 {[%clk 0:02:58]}  b6 {[%clk 0:02:45]} 11. O-O {[%clk 0:02:58]}  Bb7 {[%clk 0:02:44]} 12. dxe5 {[%clk 0:02:55]}  Nxe5 {[%clk 0:02:40]} 13. f3 {[%clk 0:02:48]}  Qxa8 {[%clk 0:02:31]} 14. Bf4 {[%clk 0:02:44]}  h6 {[%clk 0:02:27]} 15. Ne2 {[%clk 0:02:41]}  Ba6 {[%clk 0:02:10]} 16. b3 {[%clk 0:02:39]}  Nfd7 {[%clk 0:01:54]} 17. c4 {[%clk 0:02:37]}  b5 {[%clk 0:01:49]} 18. cxb5 {[%clk 0:02:34]}  Bxb5 {[%clk 0:01:50]} 19. Be3 {[%clk 0:02:29]}  Nc5 {[%clk 0:01:50]} 20. a4 {[%clk 0:02:26]}  Ba6 {[%clk 0:01:44]} 21. b4 {[%clk 0:02:27]}  Ne6 {[%clk 0:01:31]} 22. b5 {[%clk 0:02:26]}  Bb7 {[%clk 0:01:31]} 23. Nc3 {[%clk 0:02:26]}  Nf4 {[%clk 0:01:17]} 24. Bxf4 {[%clk 0:02:24]}  Rxf4 {[%clk 0:01:18]} 25. Rc1 {[%clk 0:02:24]}  Kh7 {[%clk 0:01:15]} 26. Ne2 {[%clk 0:02:22]}  Rf6 {[%clk 0:01:13]} 27. a5 {[%clk 0:02:15]}  Qe8 {[%clk 0:01:08]} 28. Rc7 {[%clk 0:02:11]}  Bc8 {[%clk 0:01:03]} 29. Qa4 {[%clk 0:02:07]}  Bd7 {[%clk 0:00:50]} 30. Nd4 {[%clk 0:02:00]}  a6 {[%clk 0:00:40]} 31. Rb1 {[%clk 0:01:59]}  axb5 {[%clk 0:00:38]} 32. Nxb5 {[%clk 0:01:56]}  Qg6 {[%clk 0:00:34]} 33. Kh1 {[%clk 0:01:38]}  d5 {[%clk 0:00:24]} 34. Re1 {[%clk 0:01:29]}  Nd3 {[%clk 0:00:19]} 35. Rf1 {[%clk 0:01:24]}  dxe4 {[%clk 0:00:19]} 36. Rxd7 {[%clk 0:01:16]}  Bc5 {[%clk 0:00:19]} 37. Rxd3 {[%clk 0:01:12]}  exd3 {[%clk 0:00:20]} 38. Qc4 {[%clk 0:01:13]}  Be3 {[%clk 0:00:15]} 39. Rd1 {[%clk 0:01:11]}  d2 {[%clk 0:00:15]} 40. Qe2 {[%clk 0:00:58]}  Bg5 {[%clk 0:00:13]} 41. Nc3 {[%clk 0:00:56]}  Rc6 {[%clk 0:00:08]} 42. Ne4 {[%clk 0:00:53]}  Rc1 {[%clk 0:00:09]} 43. Nxd2 {[%clk 0:00:47]} 1-0


[Site "https://www.chess.com"]

[Event "Titled Tuesday Blitz April 12 Early 2022"]
[White "Atakhan, Abtin"]
[Black "Pajeken, Jakob Leon"]
[WhiteFideId "22502203"]
[BlackFideId "12942839"]
[WhiteElo "2094"]
[BlackElo "2351"]
[Result "1-0"]
[Round "11"]
[TimeControl "180+1"]
[Date "2022.04.12"]
[WhiteClock "0:00:03"]
[BlackClock "0:00:04"]

1. c4 {[%clk 0:03:00]}  e6 {[%clk 0:02:57]} 2. g3 {[%clk 0:03:00]}  d5 {[%clk 0:02:58]} 3. Bg2 {[%clk 0:03:01]}  Nf6 {[%clk 0:02:56]} 4. Nf3 {[%clk 0:03:01]}  d4 {[%clk 0:02:57]} 5. O-O {[%clk 0:03:01]}  c5 {[%clk 0:02:57]} 6. e3 {[%clk 0:02:59]}  Nc6 {[%clk 0:02:56]} 7. exd4 {[%clk 0:02:58]}  cxd4 {[%clk 0:02:57]} 8. Re1 {[%clk 0:02:58]}  Bd6 {[%clk 0:02:51]} 9. d3 {[%clk 0:02:52]}  h6 {[%clk 0:02:49]} 10. a3 {[%clk 0:02:21]}  a5 {[%clk 0:02:45]} 11. Qc2 {[%clk 0:02:15]}  Qe7 {[%clk 0:02:22]} 12. Nbd2 {[%clk 0:02:12]}  a4 {[%clk 0:02:22]} 13. b4 {[%clk 0:02:08]}  axb3 {[%clk 0:02:21]} 14. Nxb3 {[%clk 0:02:08]}  Bc5 {[%clk 0:02:20]} 15. Nxc5 {[%clk 0:02:05]}  Qxc5 {[%clk 0:02:20]} 16. Bd2 {[%clk 0:01:55]}  Bd7 {[%clk 0:01:55]} 17. Bb4 {[%clk 0:01:50]}  Qa7 {[%clk 0:01:49]} 18. Bd6 {[%clk 0:01:44]}  h5 {[%clk 0:01:31]} 19. Rab1 {[%clk 0:01:38]}  h4 {[%clk 0:01:22]} 20. Nxh4 {[%clk 0:01:31]}  g5 {[%clk 0:01:21]} 21. Nf5 {[%clk 0:01:29]}  Kd8 {[%clk 0:01:06]} 22. Qd2 {[%clk 0:00:57]}  Rg8 {[%clk 0:00:53]} 23. Nh6 {[%clk 0:00:47]}  Rg7 {[%clk 0:00:50]} 24. Bf8 {[%clk 0:00:45]}  Rg6 {[%clk 0:00:48]} 25. Nxf7+ {[%clk 0:00:41]}  Ke8 {[%clk 0:00:44]} 26. Rxb7 {[%clk 0:00:37]}  Qa5 {[%clk 0:00:39]} 27. Bb4 {[%clk 0:00:33]}  Qa6 {[%clk 0:00:30]} 28. Nd6+ {[%clk 0:00:30]}  Kf8 {[%clk 0:00:27]} 29. Bc5 {[%clk 0:00:25]}  Kg8 {[%clk 0:00:25]} 30. Rb6 {[%clk 0:00:22]}  Qa4 {[%clk 0:00:24]} 31. Rb7 {[%clk 0:00:17]}  Qa6 {[%clk 0:00:23]} 32. Rb6 {[%clk 0:00:17]}  Qa4 {[%clk 0:00:23]} 33. Qe2 {[%clk 0:00:17]}  g4 {[%clk 0:00:15]} 34. Bxc6 {[%clk 0:00:17]}  Bxc6 {[%clk 0:00:16]} 35. Qxe6+ {[%clk 0:00:17]}  Kh7 {[%clk 0:00:15]} 36. Nf5 {[%clk 0:00:14]}  Nh5 {[%clk 0:00:07]} 37. Qf7+ {[%clk 0:00:13]}  Ng7 {[%clk 0:00:08]} 38. Nxg7 {[%clk 0:00:08]}  Rxg7 {[%clk 0:00:09]} 39. Qh5+ {[%clk 0:00:08]}  Kg8 {[%clk 0:00:09]} 40. Qe5 {[%clk 0:00:06]}  Bf3 {[%clk 0:00:09]} 41. Qe6+ {[%clk 0:00:05]}  Kh7 {[%clk 0:00:09]} 42. Qh6+ {[%clk 0:00:05]}  Kg8 {[%clk 0:00:09]} 43. Bxd4 {[%clk 0:00:05]}  Qd7 {[%clk 0:00:04]} 44. Rd6 {[%clk 0:00:04]}  Qe7 {[%clk 0:00:05]} 45. Rxe7 {[%clk 0:00:03]}  Rxe7 {[%clk 0:00:05]} 46. Qh8+ {[%clk 0:00:03]}  Kf7 {[%clk 0:00:04]} 47. Rf6# {[%clk 0:00:03]} 1-0


[Site "https://www.chess.com"]

[Event "Titled Tuesday Blitz April 12 Early 2022"]
[White "Avazkhonov, Alikhon"]
[Black "Mikhalsky, Vladimir"]
[WhiteFideId "14208504"]
[BlackFideId "14144352"]
[WhiteElo "1739"]
[BlackElo "2301"]
[Result "0-1"]
[Round "11"]
[TimeControl "180+1"]
[Date "2022.04.13"]
[WhiteClock "0:00:04"]
[BlackClock "0:01:41"]

1. e4 {[%clk 0:02:55]}  g6 {[%clk 0:02:57]} 2. d4 {[%clk 0:02:54]}  Bg7 {[%clk 0:02:57]} 3. Nc3 {[%clk 0:02:55]}  d6 {[%clk 0:02:56]} 4. Be3 {[%clk 0:02:55]}  a6 {[%clk 0:02:52]} 5. Qd2 {[%clk 0:02:53]}  b5 {[%clk 0:02:51]} 6. O-O-O {[%clk 0:02:52]}  Nd7 {[%clk 0:02:50]} 7. Kb1 {[%clk 0:02:51]}  Bb7 {[%clk 0:02:47]} 8. f3 {[%clk 0:02:48]}  Nb6 {[%clk 0:02:45]} 9. d5 {[%clk 0:02:38]}  b4 {[%clk 0:02:42]} 10. Nce2 {[%clk 0:01:59]}  Nc4 {[%clk 0:02:40]} 11. Qd3 {[%clk 0:01:58]}  Nxb2 {[%clk 0:02:38]} 12. Qd2 {[%clk 0:01:33]}  Nxd1 {[%clk 0:02:30]} 13. Qxd1 {[%clk 0:01:34]}  c5 {[%clk 0:02:30]} 14. dxc6 {[%clk 0:01:06]}  Bxc6 {[%clk 0:02:29]} 15. Nd4 {[%clk 0:01:07]}  Bd7 {[%clk 0:02:29]} 16. Bc4 {[%clk 0:01:07]}  Nf6 {[%clk 0:02:26]} 17. Nge2 {[%clk 0:01:01]}  Qc7 {[%clk 0:02:22]} 18. Qd3 {[%clk 0:00:55]}  O-O {[%clk 0:02:18]} 19. h4 {[%clk 0:00:48]}  Rfc8 {[%clk 0:02:07]} 20. Bb3 {[%clk 0:00:32]}  e5 {[%clk 0:02:06]} 21. h5 {[%clk 0:00:13]}  exd4 {[%clk 0:01:56]} 22. Nxd4 {[%clk 0:00:06]}  Nxh5 {[%clk 0:01:48]} 23. Rxh5 {[%clk 0:00:05]}  gxh5 {[%clk 0:01:48]} 24. Bf4 {[%clk 0:00:04]}  Qc3 {[%clk 0:01:44]} 25. Qxc3 {[%clk 0:00:03]}  bxc3 {[%clk 0:01:43]} 26. Ne2 {[%clk 0:00:04]}  Be6 {[%clk 0:01:41]} 0-1


[Site "https://www.chess.com"]

[Event "Titled Tuesday Blitz April 12 Early 2022"]
[White "Bachmann, Axel"]
[Black "parintele_chess"]
[WhiteFideId "3700488"]
[WhiteElo "2587"]
[BlackElo "2264"]
[Result "1-0"]
[Round "11"]
[TimeControl "180+1"]
[Date "2022.04.13"]
[WhiteClock "0:00:16"]
[BlackClock "0:00:03"]

1. d4 {[%clk 0:02:53]}  d5 {[%clk 0:02:59]} 2. Nf3 {[%clk 0:02:53]}  Nf6 {[%clk 0:02:56]} 3. g3 {[%clk 0:02:52]}  g6 {[%clk 0:02:55]} 4. Bg2 {[%clk 0:02:48]}  Bg7 {[%clk 0:02:55]} 5. c4 {[%clk 0:02:45]}  c6 {[%clk 0:02:55]} 6. Qb3 {[%clk 0:02:44]}  O-O {[%clk 0:02:50]} 7. Nc3 {[%clk 0:02:44]}  dxc4 {[%clk 0:02:48]} 8. Qxc4 {[%clk 0:02:43]}  Nbd7 {[%clk 0:02:48]} 9. O-O {[%clk 0:02:40]}  Nb6 {[%clk 0:02:48]} 10. Qd3 {[%clk 0:02:39]}  Nbd5 {[%clk 0:02:33]} 11. e4 {[%clk 0:02:36]}  Nxc3 {[%clk 0:02:33]} 12. bxc3 {[%clk 0:02:36]}  c5 {[%clk 0:02:34]} 13. Rd1 {[%clk 0:02:29]}  Qa5 {[%clk 0:01:55]} 14. Ne5 {[%clk 0:02:16]}  Rd8 {[%clk 0:01:31]} 15. Be3 {[%clk 0:02:01]}  b6 {[%clk 0:01:16]} 16. Nc6 {[%clk 0:01:48]}  Ba6 {[%clk 0:01:07]} 17. Qd2 {[%clk 0:01:29]}  Qa3 {[%clk 0:00:59]} 18. e5 {[%clk 0:01:04]}  Ng4 {[%clk 0:00:31]} 19. Bg5 {[%clk 0:00:47]}  f6 {[%clk 0:00:15]} 20. Nxe7+ {[%clk 0:00:43]}  Kf7 {[%clk 0:00:15]} 21. exf6 {[%clk 0:00:43]}  Nxf6 {[%clk 0:00:15]} 22. Bxa8 {[%clk 0:00:37]}  Rxa8 {[%clk 0:00:15]} 23. Nc6 {[%clk 0:00:36]}  Re8 {[%clk 0:00:09]} 24. Ne5+ {[%clk 0:00:35]}  Kg8 {[%clk 0:00:06]} 25. Qf4 {[%clk 0:00:32]}  Rf8 {[%clk 0:00:04]} 26. Qf3 {[%clk 0:00:28]}  Nh5 {[%clk 0:00:02]} 27. Qd5+ {[%clk 0:00:27]}  Kh8 {[%clk 0:00:02]} 28. Nf7+ {[%clk 0:00:27]}  Rxf7 {[%clk 0:00:03]} 29. Qxf7 {[%clk 0:00:25]}  h6 {[%clk 0:00:03]} 30. Re1 {[%clk 0:00:16]} 1-0


[Site "https://www.chess.com"]

[Event "Titled Tuesday Blitz April 12 Early 2022"]
[White "Belenkaya, Dina"]
[Black "Roman, Rodrigo"]
[WhiteFideId "24142654"]
[BlackFideId "3701220"]
[WhiteElo "2196"]
[BlackElo "2001"]
[Result "1-0"]
[Round "11"]
[TimeControl "180+1"]
[Date "2022.04.13"]
[WhiteClock "0:00:15"]
[BlackClock "0:00:54"]

1. e4 {[%clk 0:02:57]}  e6 {[%clk 0:02:59]} 2. d3 {[%clk 0:02:55]}  d5 {[%clk 0:02:59]} 3. Nd2 {[%clk 0:02:55]}  Nf6 {[%clk 0:02:59]} 4. g3 {[%clk 0:02:56]}  b6 {[%clk 0:02:58]} 5. Bg2 {[%clk 0:02:56]}  Bb7 {[%clk 0:02:58]} 6. Ne2 {[%clk 0:02:55]}  Be7 {[%clk 0:02:56]} 7. O-O {[%clk 0:02:55]}  dxe4 {[%clk 0:02:55]} 8. dxe4 {[%clk 0:02:55]}  O-O {[%clk 0:02:55]} 9. c3 {[%clk 0:02:50]}  c5 {[%clk 0:02:55]} 10. Qc2 {[%clk 0:02:47]}  Nc6 {[%clk 0:02:53]} 11. Rd1 {[%clk 0:02:47]}  Qc7 {[%clk 0:02:53]} 12. f4 {[%clk 0:02:46]}  Rad8 {[%clk 0:02:48]} 13. b3 {[%clk 0:02:38]}  e5 {[%clk 0:02:48]} 14. Bb2 {[%clk 0:02:36]}  Bd6 {[%clk 0:02:46]} 15. Nc4 {[%clk 0:02:34]}  exf4 {[%clk 0:02:45]} 16. Nxd6 {[%clk 0:02:34]}  Rxd6 {[%clk 0:02:45]} 17. gxf4 {[%clk 0:02:34]}  Rxd1+ {[%clk 0:02:39]} 18. Rxd1 {[%clk 0:02:33]}  Rd8 {[%clk 0:02:40]} 19. Re1 {[%clk 0:02:16]}  Ng4 {[%clk 0:02:40]} 20. Qc1 {[%clk 0:02:11]}  Ne7 {[%clk 0:02:35]} 21. c4 {[%clk 0:02:10]}  Ng6 {[%clk 0:02:34]} 22. h3 {[%clk 0:01:59]}  Nf6 {[%clk 0:02:32]} 23. f5 {[%clk 0:01:47]}  Ne5 {[%clk 0:02:28]} 24. Nf4 {[%clk 0:01:45]}  Nd3 {[%clk 0:02:24]} 25. Nxd3 {[%clk 0:01:43]}  Rxd3 {[%clk 0:02:25]} 26. Qg5 {[%clk 0:01:39]}  Ne8 {[%clk 0:02:17]} 27. e5 {[%clk 0:01:16]}  Bxg2 {[%clk 0:02:12]} 28. Qxg2 {[%clk 0:01:17]}  Qd7 {[%clk 0:02:05]} 29. e6 {[%clk 0:00:23]}  fxe6 {[%clk 0:01:41]} 30. Rxe6 {[%clk 0:00:24]}  Rd1+ {[%clk 0:01:40]} 31. Kh2 {[%clk 0:00:24]}  Rd2 {[%clk 0:01:37]} 32. Rxe8+ {[%clk 0:00:24]}  Kf7 {[%clk 0:01:32]} 33. Re2 {[%clk 0:00:23]}  Qd6+ {[%clk 0:01:31]} 34. Be5 {[%clk 0:00:19]}  Rxe2 {[%clk 0:01:22]} 35. Qxe2 {[%clk 0:00:18]}  Qe7 {[%clk 0:01:14]} 36. Qe4 {[%clk 0:00:17]}  Kg8 {[%clk 0:00:54]} 37. Qd5+ {[%clk 0:00:16]}  Kh8 {[%clk 0:00:54]} 38. Qa8+ {[%clk 0:00:15]}  Qf8 {[%clk 0:00:54]} 39. Qxf8# {[%clk 0:00:15]} 1-0


[Site "https://www.chess.com"]

[Event "Titled Tuesday Blitz April 12 Early 2022"]
[White "Blokhin, Sofia"]
[Black "Tuleyeva-Aketayeva, Dana"]
[WhiteFideId "4508190"]
[BlackFideId "13701932"]
[WhiteElo "1764"]
[BlackElo "1875"]
[Result "1-0"]
[Round "11"]
[TimeControl "180+1"]
[Date "2022.04.13"]
[WhiteClock "0:00:22"]
[BlackClock "0:00:06"]

1. d4 {[%clk 0:03:00]}  Nf6 {[%clk 0:02:57]} 2. c4 {[%clk 0:02:59]}  e6 {[%clk 0:02:57]} 3. Nc3 {[%clk 0:02:58]}  c5 {[%clk 0:02:56]} 4. d5 {[%clk 0:02:56]}  exd5 {[%clk 0:02:57]} 5. cxd5 {[%clk 0:02:56]}  d6 {[%clk 0:02:58]} 6. e4 {[%clk 0:02:56]}  g6 {[%clk 0:02:57]} 7. Nf3 {[%clk 0:02:50]}  Bg7 {[%clk 0:02:58]} 8. Be2 {[%clk 0:02:46]}  O-O {[%clk 0:02:58]} 9. O-O {[%clk 0:02:46]}  Ne8 {[%clk 0:02:49]} 10. Bf4 {[%clk 0:02:45]}  Nd7 {[%clk 0:02:48]} 11. Nd2 {[%clk 0:02:43]}  Ne5 {[%clk 0:02:48]} 12. Bg3 {[%clk 0:02:42]}  a6 {[%clk 0:02:47]} 13. f4 {[%clk 0:02:42]}  Nd7 {[%clk 0:02:44]} 14. a4 {[%clk 0:02:40]}  Bd4+ {[%clk 0:02:43]} 15. Kh1 {[%clk 0:02:39]}  Ndf6 {[%clk 0:02:43]} 16. Bc4 {[%clk 0:02:33]}  Bxc3 {[%clk 0:02:39]} 17. bxc3 {[%clk 0:02:32]}  Nh5 {[%clk 0:02:35]} 18. Be1 {[%clk 0:02:24]}  Nef6 {[%clk 0:02:34]} 19. Qf3 {[%clk 0:02:06]}  Bg4 {[%clk 0:02:26]} 20. Qd3 {[%clk 0:02:04]}  Rb8 {[%clk 0:02:01]} 21. Bh4 {[%clk 0:02:01]}  Qe8 {[%clk 0:01:57]} 22. a5 {[%clk 0:01:41]}  Bd7 {[%clk 0:01:39]} 23. Rae1 {[%clk 0:01:36]}  Bb5 {[%clk 0:01:38]} 24. e5 {[%clk 0:01:32]}  Bxc4 {[%clk 0:01:00]} 25. Nxc4 {[%clk 0:01:27]}  dxe5 {[%clk 0:00:54]} 26. fxe5 {[%clk 0:01:25]}  Ng4 {[%clk 0:00:50]} 27. Qe4 {[%clk 0:01:15]}  Nh6 {[%clk 0:00:46]} 28. Nd6 {[%clk 0:01:13]}  Qd7 {[%clk 0:00:38]} 29. Bg5 {[%clk 0:01:12]}  Kg7 {[%clk 0:00:17]} 30. Qe3 {[%clk 0:01:02]}  Ng4 {[%clk 0:00:12]} 31. Qe4 {[%clk 0:00:45]}  h6 {[%clk 0:00:11]} 32. Bd2 {[%clk 0:00:38]}  f5 {[%clk 0:00:11]} 33. exf6+ {[%clk 0:00:31]}  Ngxf6 {[%clk 0:00:10]} 34. Qe7+ {[%clk 0:00:26]}  Qxe7 {[%clk 0:00:07]} 35. Rxe7+ {[%clk 0:00:27]}  Kh8 {[%clk 0:00:06]} 36. Nf7+ {[%clk 0:00:22]} 1-0


[Site "https://www.chess.com"]

[Event "Titled Tuesday Blitz April 12 Early 2022"]
[White "Broca Jimenez, Fernando"]
[Black "Odegov, Artem"]
[WhiteFideId "5104742"]
[BlackFideId "34183644"]
[WhiteElo "2062"]
[BlackElo "2286"]
[Result "1/2-1/2"]
[Round "11"]
[TimeControl "180+1"]
[Date "2022.04.13"]
[WhiteClock "0:00:46"]
[BlackClock "0:01:39"]

1. e4 {[%clk 0:03:00]}  e6 {[%clk 0:02:51]} 2. d4 {[%clk 0:02:59]}  d5 {[%clk 0:02:49]} 3. exd5 {[%clk 0:03:00]}  exd5 {[%clk 0:02:48]} 4. Bd3 {[%clk 0:03:00]}  Bd6 {[%clk 0:02:47]} 5. Nf3 {[%clk 0:03:00]}  Ne7 {[%clk 0:02:45]} 6. Bg5 {[%clk 0:03:00]}  f6 {[%clk 0:02:44]} 7. Bh4 {[%clk 0:03:00]}  O-O {[%clk 0:02:44]} 8. O-O {[%clk 0:03:00]}  Bf5 {[%clk 0:02:44]} 9. Re1 {[%clk 0:02:58]}  Nbc6 {[%clk 0:02:43]} 10. c3 {[%clk 0:02:57]}  Qd7 {[%clk 0:02:43]} 11. Bg3 {[%clk 0:02:54]}  Rae8 {[%clk 0:02:41]} 12. Qc2 {[%clk 0:02:50]}  Bxd3 {[%clk 0:02:40]} 13. Qxd3 {[%clk 0:02:50]}  Nf5 {[%clk 0:02:40]} 14. Bxd6 {[%clk 0:02:46]}  Nxd6 {[%clk 0:02:41]} 15. Nbd2 {[%clk 0:02:45]}  Rxe1+ {[%clk 0:02:40]} 16. Rxe1 {[%clk 0:02:43]}  Re8 {[%clk 0:02:41]} 17. Re2 {[%clk 0:02:43]}  Rxe2 {[%clk 0:02:38]} 18. Qxe2 {[%clk 0:02:44]}  Qe7 {[%clk 0:02:38]} 19. Kf1 {[%clk 0:02:43]}  Qxe2+ {[%clk 0:02:36]} 20. Kxe2 {[%clk 0:02:44]}  Kf7 {[%clk 0:02:36]} 21. Kd3 {[%clk 0:02:39]}  Nd8 {[%clk 0:02:34]} 22. b4 {[%clk 0:02:38]}  Ne6 {[%clk 0:02:34]} 23. g3 {[%clk 0:02:36]}  Nf8 {[%clk 0:02:31]} 24. a4 {[%clk 0:02:34]}  Nd7 {[%clk 0:02:31]} 25. a5 {[%clk 0:02:31]}  b6 {[%clk 0:02:29]} 26. axb6 {[%clk 0:02:29]}  cxb6 {[%clk 0:02:30]} 27. Ng1 {[%clk 0:02:16]}  a5 {[%clk 0:02:27]} 28. bxa5 {[%clk 0:02:08]}  bxa5 {[%clk 0:02:28]} 29. Ne2 {[%clk 0:02:07]}  Nb6 {[%clk 0:02:28]} 30. Kc2 {[%clk 0:02:02]}  a4 {[%clk 0:02:27]} 31. Nf4 {[%clk 0:01:59]}  g5 {[%clk 0:02:23]} 32. Nd3 {[%clk 0:01:59]}  Nbc4 {[%clk 0:02:15]} 33. Nxc4 {[%clk 0:01:52]}  dxc4 {[%clk 0:02:15]} 34. Nb4 {[%clk 0:01:42]}  a3 {[%clk 0:02:14]} 35. Kb1 {[%clk 0:01:41]}  Ne4 {[%clk 0:02:14]} 36. Ka2 {[%clk 0:01:33]}  Nxc3+ {[%clk 0:02:14]} 37. Kxa3 {[%clk 0:01:33]}  Nb5+ {[%clk 0:02:15]} 38. Kb2 {[%clk 0:01:31]}  Nxd4 {[%clk 0:02:16]} 39. Kc3 {[%clk 0:01:32]}  Nf3 {[%clk 0:02:16]} 40. Kxc4 {[%clk 0:01:31]}  Nxh2 {[%clk 0:02:16]} 41. Kd3 {[%clk 0:01:29]}  Ng4 {[%clk 0:02:14]} 42. Ke2 {[%clk 0:01:28]}  Ke6 {[%clk 0:02:15]} 43. Nd3 {[%clk 0:01:23]}  h5 {[%clk 0:02:14]} 44. f3 {[%clk 0:01:20]}  Ne5 {[%clk 0:02:14]} 45. Nc5+ {[%clk 0:01:20]}  Kf5 {[%clk 0:02:14]} 46. Kf2 {[%clk 0:01:17]}  Ng6 {[%clk 0:01:56]} 47. Nb3 {[%clk 0:01:10]}  h4 {[%clk 0:01:54]} 48. Nd4+ {[%clk 0:01:04]}  Ke5 {[%clk 0:01:54]} 49. Nc6+ {[%clk 0:01:04]}  Kd6 {[%clk 0:01:54]} 50. Nd4 {[%clk 0:01:03]}  h3 {[%clk 0:01:53]} 51. Ne2 {[%clk 0:00:58]}  f5 {[%clk 0:01:52]} 52. Kg1 {[%clk 0:00:57]}  g4 {[%clk 0:01:50]} 53. fxg4 {[%clk 0:00:52]}  fxg4 {[%clk 0:01:51]} 54. Kh2 {[%clk 0:00:48]}  Ke5 {[%clk 0:01:51]} 55. Ng1 {[%clk 0:00:48]}  Ke4 {[%clk 0:01:48]} 56. Nxh3 {[%clk 0:00:49]}  Ne5 {[%clk 0:01:40]} 57. Nf2+ {[%clk 0:00:46]}  Kf3 {[%clk 0:01:39]} 1/2-1/2


[Site "https://www.chess.com"]

[Event "Titled Tuesday Blitz April 12 Early 2022"]
[White "Bryakin, Mikhail"]
[Black "Csonka, Balazs"]
[WhiteFideId "4165314"]
[BlackFideId "742910"]
[WhiteElo "2417"]
[BlackElo "2404"]
[Result "1/2-1/2"]
[Round "11"]
[TimeControl "180+1"]
[Date "2022.04.12"]
[WhiteClock "0:02:33"]
[BlackClock "0:02:34"]

1. e4 {[%clk 0:03:00]}  e6 {[%clk 0:03:00]} 2. Nf3 {[%clk 0:02:55]}  d5 {[%clk 0:03:01]} 3. Qe2 {[%clk 0:02:56]}  dxe4 {[%clk 0:02:59]} 4. Qxe4 {[%clk 0:02:56]}  Nf6 {[%clk 0:02:59]} 5. Qh4 {[%clk 0:02:54]}  c5 {[%clk 0:02:53]} 6. b3 {[%clk 0:02:54]}  g6 {[%clk 0:02:46]} 7. Bb2 {[%clk 0:02:54]}  Bg7 {[%clk 0:02:46]} 8. Bb5+ {[%clk 0:02:54]}  Bd7 {[%clk 0:02:44]} 9. Bxd7+ {[%clk 0:02:48]}  Nbxd7 {[%clk 0:02:45]} 10. d3 {[%clk 0:02:41]}  O-O {[%clk 0:02:43]} 11. Nbd2 {[%clk 0:02:42]}  Nd5 {[%clk 0:02:36]} 12. Qxd8 {[%clk 0:02:38]}  Rfxd8 {[%clk 0:02:34]} 13. Bxg7 {[%clk 0:02:39]}  Kxg7 {[%clk 0:02:34]} 14. g3 {[%clk 0:02:33]} 1/2-1/2


[Site "https://www.chess.com"]

[Event "Titled Tuesday Blitz April 12 Early 2022"]
[White "Butti, Enrique"]
[Black "Dwilewicz, Katarzyna"]
[WhiteFideId "3700470"]
[BlackFideId "1148486"]
[WhiteElo "2080"]
[BlackElo "1907"]
[Result "0-1"]
[Round "11"]
[TimeControl "180+1"]
[Date "2022.04.13"]
[WhiteClock "0:00:01"]
[BlackClock "0:00:10"]

1. d4 {[%clk 0:03:00]}  d5 {[%clk 0:02:59]} 2. c4 {[%clk 0:02:59]}  e6 {[%clk 0:02:59]} 3. Nf3 {[%clk 0:02:58]}  c5 {[%clk 0:02:51]} 4. e3 {[%clk 0:02:58]}  Nc6 {[%clk 0:02:50]} 5. Nc3 {[%clk 0:02:56]}  cxd4 {[%clk 0:02:48]} 6. exd4 {[%clk 0:02:38]}  Nf6 {[%clk 0:02:49]} 7. cxd5 {[%clk 0:02:36]}  exd5 {[%clk 0:02:45]} 8. Bg5 {[%clk 0:02:00]}  Be6 {[%clk 0:02:34]} 9. Bb5 {[%clk 0:01:55]}  a6 {[%clk 0:02:25]} 10. Bxc6+ {[%clk 0:01:54]}  bxc6 {[%clk 0:02:25]} 11. Ne5 {[%clk 0:01:53]}  Qb6 {[%clk 0:02:05]} 12. O-O {[%clk 0:01:39]}  h6 {[%clk 0:01:58]} 13. Bh4 {[%clk 0:01:27]}  Bd6 {[%clk 0:01:50]} 14. Qa4 {[%clk 0:01:18]}  O-O-O {[%clk 0:01:17]} 15. Qxc6+ {[%clk 0:01:11]}  Qxc6 {[%clk 0:01:16]} 16. Nxc6 {[%clk 0:01:10]}  Rd7 {[%clk 0:01:16]} 17. Ne5 {[%clk 0:00:56]}  Rc7 {[%clk 0:00:58]} 18. Rfc1 {[%clk 0:00:47]}  Kb8 {[%clk 0:00:58]} 19. Bxf6 {[%clk 0:00:46]}  gxf6 {[%clk 0:00:58]} 20. Nd3 {[%clk 0:00:45]}  Rhc8 {[%clk 0:00:53]} 21. Na4 {[%clk 0:00:43]}  Rc4 {[%clk 0:00:49]} 22. Ndc5 {[%clk 0:00:36]}  Ka7 {[%clk 0:00:43]} 23. Rd1 {[%clk 0:00:32]}  Rb8 {[%clk 0:00:33]} 24. b3 {[%clk 0:00:31]}  Rc2 {[%clk 0:00:33]} 25. Rdc1 {[%clk 0:00:28]}  Rxc1+ {[%clk 0:00:30]} 26. Rxc1 {[%clk 0:00:27]}  Rc8 {[%clk 0:00:28]} 27. Kf1 {[%clk 0:00:25]}  h5 {[%clk 0:00:25]} 28. h3 {[%clk 0:00:24]}  Bf4 {[%clk 0:00:23]} 29. Rc3 {[%clk 0:00:23]}  Bd2 {[%clk 0:00:21]} 30. Rc2 {[%clk 0:00:22]}  Bf4 {[%clk 0:00:20]} 31. Ke2 {[%clk 0:00:21]}  Bf5 {[%clk 0:00:20]} 32. Rc3 {[%clk 0:00:20]}  Re8+ {[%clk 0:00:21]} 33. Kd1 {[%clk 0:00:17]}  Bd6 {[%clk 0:00:19]} 34. Rf3 {[%clk 0:00:15]}  Be4 {[%clk 0:00:17]} 35. Rxf6 {[%clk 0:00:15]}  Bxc5 {[%clk 0:00:17]} 36. Nxc5 {[%clk 0:00:14]}  Bxg2 {[%clk 0:00:18]} 37. Rxf7+ {[%clk 0:00:13]}  Ka8 {[%clk 0:00:15]} 38. h4 {[%clk 0:00:13]}  a5 {[%clk 0:00:09]} 39. Rf5 {[%clk 0:00:09]}  Re7 {[%clk 0:00:07]} 40. Kd2 {[%clk 0:00:08]}  Ka7 {[%clk 0:00:07]} 41. Rxh5 {[%clk 0:00:08]}  Bf3 {[%clk 0:00:08]} 42. Rh6 {[%clk 0:00:07]}  Re2+ {[%clk 0:00:08]} 43. Kc3 {[%clk 0:00:07]}  Rxa2 {[%clk 0:00:08]} 44. Ra6+ {[%clk 0:00:06]}  Kb8 {[%clk 0:00:09]} 45. Nd3 {[%clk 0:00:05]}  Be4 {[%clk 0:00:08]} 46. Nc5 {[%clk 0:00:04]}  Rxf2 {[%clk 0:00:08]} 47. Nxe4 {[%clk 0:00:02]}  dxe4 {[%clk 0:00:09]} 48. Rxa5 {[%clk 0:00:02]}  Rh2 {[%clk 0:00:09]} 49. Re5 {[%clk 0:00:01]}  Rxh4 {[%clk 0:00:09]} 50. d5 {[%clk 0:00:01]}  Kc7 {[%clk 0:00:10]} 51. Kd4 {[%clk 0:00:01]}  Kd6 {[%clk 0:00:10]} 52. Rxe4 {[%clk 0:00:01]}  Rh3 {[%clk 0:00:10]} 0-1


[Site "https://www.chess.com"]